fUSD/lending_fUSD_20260322
["ID","MTS","AMOUNT","RATE_DAILY","PERIOD"]
[408740686,1774183858730,-200.0,0.00042427,2]
[408740687,1774183858739,-200.0,0.00042427,2]
[408740688,1774183858749,-200.0,0.00042427,2]
[408740689,1774183858759,-200.0,0.00042427,2]
[408740690,1774183858769,-200.0,0.00042427,2]
[408740691,1774183858778,-200.0,0.00042427,2]
[408740692,1774183858788,-200.0,0.00042427,2]
[408740693,1774183858799,-200.0,0.00042427,2]
[408740694,1774183858809,-200.0,0.00042427,2]
[408740695,1774183858819,-200.0,0.00042427,2]
[408740696,1774183858828,-200.0,0.00042427,2]
[408740697,1774183858838,-200.0,0.00042427,2]
[408740698,1774183858847,-200.0,0.00042427,2]
[408740699,1774183858856,-200.0,0.00042427,2]
[408740700,1774183858866,-200.0,0.00042427,2]
[408740701,1774183858878,-200.0,0.00042427,2]
[408740702,1774183858888,-200.0,0.00042427,2]
[408740703,1774183858898,-200.0,0.00042427,2]
[408740704,1774183858907,-200.0,0.00042427,2]
[408740705,1774183858916,-200.0,0.00042427,2]
[408740706,1774183858926,-200.0,0.00042427,2]
[408740707,1774183858935,-200.0,0.00042427,2]
[408740708,1774183858944,-200.0,0.00042427,2]
[408740709,1774183858954,-200.0,0.00042427,2]
[408740710,1774183858964,-200.0,0.00042427,2]
[408740711,1774183858974,-200.0,0.00042427,2]
[408740712,1774183858985,-200.0,0.00042427,2]
[408740713,1774183858995,-200.0,0.00042427,2]
[408740714,1774183859005,-200.0,0.00042427,2]
[408740715,1774183859014,-269.0,0.00042427,2]
[408740716,1774183859023,-151.0,0.00042427,120]
[408740717,1774183859032,-500.0,0.00042432,120]
[408740718,1774183859041,-365.24,0.00042432,120]
[408740719,1774183859050,-500.0,0.00042438,120]
[408740720,1774183859060,-500.0,0.00042438,120]
[408740721,1774183859070,-250.0,0.0004245,30]
[408740722,1774183859080,-250.0,0.0004245,30]
[408740723,1774183859089,-250.0,0.0004245,30]
[408740724,1774183859099,-5000.0,0.00042451,2]
[408740725,1774183859108,-5000.0,0.00042451,2]
[408740726,1774183859119,-2001.0,0.00042451,2]
[408740727,1774183859129,-200.0,0.00042462,8]
[408740728,1774183859138,-200.0,0.00042464,8]
[408740729,1774183859147,-200.0,0.00042464,8]
[408740730,1774183859156,-1990.0,0.00042465,120]
[408740731,1774183859166,-394.0,0.00042469,16]
[408740732,1774183859175,-161.0,0.00042469,16]
[408740733,1774183859184,-200.0,0.00042472,8]
[408740734,1774183859193,-200.0,0.00042472,8]
[408740735,1774183859202,-200.0,0.00042472,8]
[408740736,1774183859211,-200.0,0.00042472,8]
[408740737,1774183859221,-159.3639,0.00042472,2]
[408740738,1774183859230,-151.0,0.00042476,120]
[408740739,1774183859239,-1086.77526194,0.00042484,2]
[408740740,1774183859248,-300.0,0.00042484,2]
[408740741,1774183859257,-300.0,0.00042484,2]
[408740742,1774183859267,-300.0,0.00042484,2]
[408740743,1774183859276,-300.0,0.00042484,2]
[408740744,1774183859285,-300.0,0.00042484,2]
[408740745,1774183859294,-300.0,0.00042484,2]
[408740746,1774183859303,-300.0,0.00042484,2]
[408740747,1774183859312,-300.0,0.00042484,2]
[408740748,1774183859321,-300.0,0.00042484,2]
[408740749,1774183859330,-300.0,0.00042484,2]
[408740750,1774183859339,-300.0,0.00042484,2]
[408740751,1774183859348,-300.0,0.00042484,2]
[408740752,1774183859358,-301.000602,0.00042484,2]
[408740753,1774183859367,-300.0,0.00042484,2]
[408740754,1774183859376,-300.0,0.00042484,2]
[408740755,1774183859385,-300.0,0.00042484,2]
[408740756,1774183859394,-600.11635329,0.00042484,2]
[408740757,1774183859406,-300.0,0.00042484,2]
[408740758,1774183859415,-300.0,0.00042484,2]
[408740759,1774183859425,-300.0,0.00042484,2]
[408740760,1774183859434,-555.90105714,0.00042484,2]
[408740761,1774183859445,-300.3537239,0.00042484,2]
[408740762,1774183859454,-300.0,0.00042484,2]
[408740763,1774183859463,-300.0,0.00042484,2]
[408740764,1774183859472,-1138.86212569,0.00042484,2]
[408740765,1774183859481,-307.35924896,0.00042484,2]
[408740766,1774183859490,-300.0,0.00042484,2]
[408740767,1774183859499,-858.24055709,0.00042484,2]
[408740768,1774183859508,-300.0,0.00042484,2]
[408740769,1774183859517,-300.0,0.00042484,2]
[408740770,1774183859527,-300.0,0.00042484,2]
[408740771,1774183859537,-308.63412797,0.00042484,2]
[408740772,1774183859547,-300.0,0.00042484,2]
[408740773,1774183859556,-300.0,0.00042484,2]
[408740774,1774183859565,-300.0,0.00042484,2]
[408740775,1774183859574,-460.5100828,0.00042484,2]
[408740776,1774183859583,-300.0,0.00042484,2]
[408740777,1774183859593,-300.0,0.00042484,2]
[408740778,1774183859602,-300.0,0.00042484,2]
[408740779,1774183859611,-448.59580951,0.00042484,2]
[408740780,1774183859621,-300.0,0.00042484,2]
[408740781,1774183859630,-300.0,0.00042484,2]
[408740782,1774183859640,-300.0,0.00042484,2]
[408740783,1774183859649,-300.0,0.00042484,2]
[408740784,1774183859658,-300.0,0.00042484,2]
[408740785,1774183859668,-520.90741423,0.00042484,2]
[408740786,1774183859677,-307.59307592,0.00042484,2]
[408740787,1774183859687,-300.0,0.00042484,2]
[408740788,1774183859697,-300.0,0.00042484,2]
[408740789,1774183859707,-300.0,0.00042484,2]
[408740790,1774183859717,-300.0,0.00042484,2]
[408740791,1774183859726,-417.11348177,0.00042484,2]
[408740792,1774183859735,-300.0,0.00042484,2]
[408740793,1774183859748,-300.0,0.00042484,2]
[408740794,1774183859757,-501.41839711,0.00042484,2]
[408740795,1774183859767,-300.0,0.00042484,2]
[408740796,1774183859776,-1086.77526194,0.00042484,2]
[408740797,1774183859785,-300.0,0.00042484,2]
[408740798,1774183859795,-300.0,0.00042484,2]
[408740799,1774183859805,-300.0,0.00042484,2]
[408740800,1774183859814,-300.0,0.00042484,2]
[408740801,1774183859823,-300.0,0.00042484,2]
[408740802,1774183859833,-300.0,0.00042484,2]
[408740803,1774183859842,-300.0,0.00042484,2]
[408740804,1774183859852,-300.0,0.00042484,2]
[408740805,1774183859861,-300.0,0.00042484,2]
[408740806,1774183859871,-300.0,0.00042484,2]
[408740807,1774183859880,-300.0,0.00042484,2]
[408740808,1774183859889,-300.0,0.00042484,2]
[408740809,1774183859898,-300.0,0.00042484,2]
[408740810,1774183859908,-301.000602,0.00042484,2]
[408740811,1774183859918,-300.0,0.00042484,2]
[408740812,1774183859927,-300.0,0.00042484,2]
[408740813,1774183859937,-300.0,0.00042484,2]
[408740814,1774183859946,-300.0,0.00042484,2]
[408740815,1774183859955,-300.0,0.00042484,2]
[408740816,1774183859964,-300.0,0.00042484,2]
[408740817,1774183859974,-600.11635329,0.00042484,2]
[408740818,1774183859984,-300.0,0.00042484,2]
[408740819,1774183859993,-300.0,0.00042484,2]
[408740820,1774183860004,-300.0,0.00042484,2]
[408740821,1774183860013,-555.90105714,0.00042484,2]
[408740822,1774183860022,-300.0,0.00042484,2]
[408740823,1774183860032,-300.3537239,0.00042484,2]
[408740824,1774183860042,-300.0,0.00042484,2]
[408740825,1774183860051,-300.0,0.00042484,2]
[408740826,1774183860061,-1138.86212569,0.00042484,2]
[408740827,1774183860071,-307.35924896,0.00042484,2]
[408740828,1774183860080,-300.0,0.00042484,2]
[408740829,1774183860089,-858.24055709,0.00042484,2]
[408740830,1774183860098,-300.0,0.00042484,2]
[408740831,1774183860107,-300.0,0.00042484,2]
[408740832,1774183860116,-300.0,0.00042484,2]
[408740833,1774183860125,-300.0,0.00042484,2]
[408740834,1774183860135,-308.63412797,0.00042484,2]
[408740835,1774183860144,-300.0,0.00042484,2]
[408740836,1774183860153,-300.0,0.00042484,2]
[408740837,1774183860163,-300.0,0.00042484,2]
[408740838,1774183860172,-460.5100828,0.00042484,2]
[408740839,1774183860182,-300.0,0.00042484,2]
[408740840,1774183860191,-300.0,0.00042484,2]
[408740841,1774183860201,-300.0,0.00042484,2]
[408740842,1774183860210,-448.59580951,0.00042484,2]
[408740843,1774183860219,-300.0,0.00042484,2]
[408740844,1774183860228,-300.0,0.00042484,2]
[408740845,1774183860238,-300.0,0.00042484,2]
[408740846,1774183860248,-300.0,0.00042484,2]
[408740847,1774183860266,-300.0,0.00042484,2]
[408740848,1774183860281,-300.0,0.00042484,2]
[408740849,1774183860297,-520.90741423,0.00042484,2]
[408740850,1774183860313,-307.59307592,0.00042484,2]
[408740851,1774183860330,-300.0,0.00042484,2]
[408740852,1774183860346,-300.0,0.00042484,2]
[408740853,1774183860358,-300.0,0.00042484,2]
[408740854,1774183860376,-417.11348177,0.00042484,2]
[408740855,1774183860391,-300.0,0.00042484,2]
[408740856,1774183860412,-300.0,0.00042484,2]
[408740857,1774183860426,-300.0,0.00042484,2]
[408740858,1774183860443,-300.0,0.00042484,2]
[408740859,1774183860459,-1086.77526194,0.00042484,2]
[408740860,1774183860475,-300.0,0.00042484,2]
[408740861,1774183860492,-300.0,0.00042484,2]
[408740862,1774183860505,-300.0,0.00042484,2]
[408740863,1774183860518,-300.0,0.00042484,2]
[408740864,1774183860530,-300.0,0.00042484,2]
[408740865,1774183860548,-300.0,0.00042484,2]
[408740866,1774183860559,-364.07913565,0.00042484,2]
[408740867,1774183860571,-300.0,0.00042484,2]
[408740868,1774183860588,-300.0,0.00042484,2]
[408740869,1774183860599,-300.0,0.00042484,2]
[408740870,1774183860612,-300.0,0.00042484,2]
[408740871,1774183860625,-300.0,0.00042484,2]
[408740872,1774183860637,-300.0,0.00042484,2]
[408740873,1774183860651,-300.0,0.00042484,2]
[408740874,1774183860664,-300.0,0.00042484,2]
[408740875,1774183860678,-301.000602,0.00042484,2]
[408740876,1774183860691,-300.0,0.00042484,2]
[408740877,1774183860704,-485.76285087,0.00042484,2]
[408740878,1774183860717,-359.63591952,0.00042484,2]
[408740879,1774183860731,-300.0,0.00042484,2]
[408740880,1774183860743,-300.0,0.00042484,2]
[408740881,1774183860756,-300.0,0.00042484,2]
[408740882,1774183860769,-600.11635329,0.00042484,2]
[408740883,1774183860781,-300.0,0.00042484,2]
[408740884,1774183860793,-300.0,0.00042484,2]
[408740885,1774183860806,-300.0,0.00042484,2]
[408740886,1774183860818,-300.0,0.00042484,2]
[408740887,1774183860831,-555.90105714,0.00042484,2]
[408740888,1774183860844,-300.0,0.00042484,2]
[408740889,1774183860858,-300.3537239,0.00042484,2]
[408740890,1774183860871,-300.0,0.00042484,2]
[408740891,1774183860885,-300.0,0.00042484,2]
[408740892,1774183860897,-1138.86212569,0.00042484,2]
[408740893,1774183860910,-307.35924896,0.00042484,2]
[408740894,1774183860923,-858.24055709,0.00042484,2]
[408740895,1774183860937,-300.0,0.00042484,2]
[408740896,1774183860950,-300.0,0.00042484,2]
[408740897,1774183860964,-300.0,0.00042484,2]
[408740898,1774183860976,-300.0,0.00042484,2]
[408740899,1774183860989,-300.0,0.00042484,2]
[408740900,1774183861010,-308.63412797,0.00042484,2]
[408740901,1774183861023,-300.0,0.00042484,2]
[408740902,1774183861036,-300.0,0.00042484,2]
[408740903,1774183861049,-300.0,0.00042484,2]
[408740904,1774183861061,-460.5100828,0.00042484,2]
[408740905,1774183861074,-300.0,0.00042484,2]
[408740906,1774183861087,-300.0,0.00042484,2]
[408740907,1774183861100,-300.0,0.00042484,2]
[408740908,1774183861113,-448.59580951,0.00042484,2]
[408740909,1774183861125,-300.0,0.00042484,2]
[408740910,1774183861140,-300.0,0.00042484,2]
[408740911,1774183861152,-300.0,0.00042484,2]
[408740912,1774183861166,-300.0,0.00042484,2]
[408740913,1774183861179,-300.0,0.00042484,2]
[408740914,1774183861192,-300.0,0.00042484,2]
[408740915,1774183861205,-520.90741423,0.00042484,2]
[408740916,1774183861219,-307.59307592,0.00042484,2]
[408740917,1774183861233,-300.0,0.00042484,2]
[408740918,1774183861246,-300.0,0.00042484,2]
[408740919,1774183861258,-300.0,0.00042484,2]
[408740920,1774183861271,-417.11348177,0.00042484,2]
[408740921,1774183861284,-300.0,0.00042484,2]
[408740922,1774183861298,-300.0,0.00042484,2]
[408740923,1774183861310,-300.0,0.00042484,2]
[408740924,1774183861324,-300.0,0.00042484,2]
[408740925,1774183861338,-1086.77526194,0.00042484,2]
[408740926,1774183861351,-300.0,0.00042484,2]
[408740927,1774183861364,-300.0,0.00042484,2]
[408740928,1774183861376,-300.0,0.00042484,2]
[408740929,1774183861390,-300.0,0.00042484,2]
[408740930,1774183861406,-300.0,0.00042484,2]
[408740931,1774183861419,-370.01483087,0.00042484,2]
[408740932,1774183861433,-300.0,0.00042484,2]
[408740933,1774183861447,-300.0,0.00042484,2]
[408740934,1774183861460,-300.0,0.00042484,2]
[408740935,1774183861474,-300.0,0.00042484,2]
[408740936,1774183861487,-300.0,0.00042484,2]
[408740937,1774183861500,-300.0,0.00042484,2]
[408740938,1774183861513,-300.0,0.00042484,2]
[408740939,1774183861525,-300.0,0.00042484,2]
[408740940,1774183861539,-300.0,0.00042484,2]
[408740941,1774183861551,-301.000602,0.00042484,2]
[408740942,1774183861565,-300.0,0.00042484,2]
[408740943,1774183861578,-300.0,0.00042484,2]
[408740944,1774183861592,-300.0,0.00042484,2]
[408740945,1774183861604,-600.11635329,0.00042484,2]
[408740946,1774183861618,-300.0,0.00042484,2]
[408740947,1774183861631,-300.0,0.00042484,2]
[408740948,1774183861644,-300.0,0.00042484,2]
[408740949,1774183861659,-300.0,0.00042484,2]
[408740950,1774183861673,-555.90105714,0.00042484,2]
[408740951,1774183861687,-300.0,0.00042484,2]
[408740952,1774183861700,-300.3537239,0.00042484,2]
[408740953,1774183861713,-300.0,0.00042484,2]
[408740954,1774183861729,-300.0,0.00042484,2]
[408740955,1774183861743,-1138.86212569,0.00042484,2]
[408740956,1774183861756,-307.35924896,0.00042484,2]
[408740957,1774183861770,-300.0,0.00042484,2]
[408740958,1774183861784,-858.24055709,0.00042484,2]
[408740959,1774183861798,-300.0,0.00042484,2]
[408740960,1774183861811,-300.0,0.00042484,2]
[408740961,1774183861824,-300.0,0.00042484,2]
[408740962,1774183861838,-300.0,0.00042484,2]
[408740963,1774183861859,-308.63412797,0.00042484,2]
[408740964,1774183861873,-300.0,0.00042484,2]
[408740965,1774183861887,-300.0,0.00042484,2]
[408740966,1774183861900,-300.0,0.00042484,2]
[408740967,1774183861914,-460.5100828,0.00042484,2]
[408740968,1774183861927,-300.0,0.00042484,2]
[408740969,1774183861938,-300.0,0.00042484,2]
[408740970,1774183861951,-300.0,0.00042484,2]
[408740971,1774183861964,-448.59580951,0.00042484,2]
[408740972,1774183861977,-300.0,0.00042484,2]
[408740973,1774183861990,-300.0,0.00042484,2]
[408740974,1774183862002,-300.0,0.00042484,2]
[408740975,1774183862015,-300.0,0.00042484,2]
[408740976,1774183862027,-300.0,0.00042484,2]
[408740977,1774183862041,-300.0,0.00042484,2]
[408740978,1774183862055,-520.90741423,0.00042484,2]
[408740979,1774183862068,-307.59307592,0.00042484,2]
[408740980,1774183862081,-300.0,0.00042484,2]
[408740981,1774183862095,-151.0,0.00042497,14]
[408740982,1774183862108,-58648.31,0.000425,7]
[408740983,1774183862121,-3000.0,0.000425,120]
[408740984,1774183862135,-123018.25706342,0.000425,30]
[408740985,1774183862148,-153.0,0.000425,120]
[408740986,1774183862161,-500.0,0.000425,120]
[408740987,1774183862173,-364.83,0.00042546,120]
[408740988,1774183862186,-564.48,0.00042546,120]
[408740989,1774183862198,-2781.34,0.00042546,120]
[408740990,1774183862211,-1433.28,0.00042546,120]
[408740991,1774183862224,-1004.69,0.00042546,120]
[408740992,1774183862237,-1093.0,0.00042553,30]
[408740993,1774183862249,-500.0,0.00042575,120]
[408740994,1774183862262,-500.0,0.00042575,120]
[408740995,1774183862280,-150.0,0.0004258,14]
[408740996,1774183862293,-200.0,0.0004259,104]
[408740997,1774183862306,-150.0,0.00042611,14]
[408740998,1774183862318,-350.0,0.0004264,7]
[408740999,1774183862330,-150.0,0.00042655,30]
[408741000,1774183862342,-150.0,0.00042669,120]
[408741001,1774183862355,-206.0,0.00042669,120]
[408741002,1774183862368,-160.0,0.000427,30]
[408741003,1774183862381,-150.0,0.00042707,14]
[408741004,1774183862395,-500.0,0.00042712,120]
[408741005,1774183862417,-500.0,0.00042712,120]
[408741006,1774183862435,-417.0,0.00042716,120]
[408741007,1774183862448,-151.5,0.00042717,2]
[408741008,1774183862460,-1990.0,0.00042739,120]
[408741009,1774183862474,-450.0,0.0004274,10]
[408741010,1774183862486,-358.31312715,0.0004274,120]
[408741011,1774183862499,-787.10595,0.000428,20]
[408741012,1774183862512,-150.0,0.00042824,14]
[408741013,1774183862524,-500.0,0.0004283,60]
[408741014,1774183862537,-500.0,0.0004283,30]
[408741015,1774183862549,-507.16385455,0.0004283,60]
[408741016,1774183862561,-500.0,0.0004283,30]
[408741017,1774183862573,-500.0,0.0004283,60]
[408741018,1774183862586,-500.0,0.0004283,60]
[408741019,1774183862598,-500.0,0.0004283,60]
[408741020,1774183862610,-500.0,0.0004283,60]
[408741021,1774183862623,-323.49528841,0.0004283,60]
[408741022,1774183862635,-500.0,0.0004283,30]
[408741023,1774183862647,-500.0,0.0004283,60]
[408741024,1774183862659,-500.0,0.0004283,60]
[408741025,1774183862672,-500.0,0.00042849,120]
[408741026,1774183862684,-500.0,0.00042849,120]
[408741027,1774183862697,-225.23,0.00042854,2]
[408741028,1774183862708,-764.94,0.00042854,2]
[408741029,1774183862721,-908.39,0.00042854,2]
[408741030,1774183862733,-908.39,0.00042854,2]
[408741031,1774183862746,-908.39,0.00042854,2]
[408741032,1774183862757,-420.49,0.00042856,120]
[408741033,1774183862769,-150.0,0.00042863,14]
[408741034,1774183862781,-983.51,0.0004287,7]
[408741035,1774183862792,-12432.1275312,0.0004288,60]
[408741036,1774183862804,-443.32951074,0.000429,120]
[408741037,1774183862816,-150.0,0.00042902,30]
[408741038,1774183862828,-192.0,0.00042902,30]
[408741039,1774183862842,-9867.10842627,0.00042927,120]
[408741040,1774183862854,-200.0,0.00042928,2]
[408741041,1774183862868,-256.0,0.00042928,2]
[408741042,1774183862880,-250.0,0.00042942,93]
[408741043,1774183862892,-208.0,0.0004295,30]
[408741044,1774183862905,-500.0,0.00042986,120]
[408741045,1774183862917,-533.93976922,0.00042986,120]
[408741046,1774183862930,-212.0524807,0.0004299,60]
[408741047,1774183862942,-576.15,0.00042993,90]
[408741048,1774183862955,-162.0,0.00043,120]
[408741049,1774183862967,-246.0975821,0.00043,7]
[408741050,1774183862980,-246.0975821,0.00043,7]
[408741051,1774183862992,-500.0,0.00043,45]
[408741052,1774183863003,-500.0,0.00043,45]
[408741053,1774183863015,-500.0,0.00043,45]
[408741054,1774183863028,-500.0,0.00043,45]
[408741055,1774183863040,-309.46,0.00043,18]
[408741056,1774183863052,-500.0,0.00043,45]
[408741057,1774183863063,-500.0,0.00043,45]
[408741058,1774183863076,-500.0,0.00043,45]
[408741059,1774183863087,-500.0,0.00043,45]
[408741060,1774183863100,-500.0,0.00043,45]
[408741061,1774183863112,-288.29964526,0.00043,45]
[408741062,1774183863125,-1732.02822585,0.00043,2]
[408741063,1774183863137,-214.0,0.00043,7]
[408741064,1774183863149,-467.00054469,0.00043,2]
[408741065,1774183863161,-2063.64350366,0.00043,120]
[408741066,1774183863173,-2142.99,0.00043,30]
[408741067,1774183863185,-1922.56,0.00043,90]
[408741068,1774183863197,-500.0,0.00043,45]
[408741069,1774183863209,-500.0,0.00043,45]
[408741070,1774183863221,-180.0,0.00043,90]
[408741071,1774183863232,-2734.76,0.00043,120]
[408741072,1774183863244,-500.0,0.00043,45]
[408741073,1774183863255,-500.0,0.00043,45]
[408741074,1774183863267,-500.0,0.00043,45]
[408741075,1774183863279,-500.0,0.00043,120]
[408741076,1774183863290,-200.0,0.00043011,117]
[408741077,1774183863303,-1990.0,0.00043013,120]
[408741078,1774183863314,-150.0,0.00043023,14]
[408741079,1774183863326,-160.0,0.00043056,30]
[408741080,1774183863337,-153.37981675,0.00043056,120]
[408741081,1774183863349,-152.68821992,0.00043062,14]
[408741082,1774183863360,-1063.43,0.00043068,120]
[408741083,1774183863372,-200.01,0.00043068,120]
[408741084,1774183863383,-192.16,0.00043068,120]
[408741085,1774183863396,-507.0,0.00043085,27]
[408741086,1774183863409,-185.22,0.000431,30]
[408741087,1774183863421,-1503.06856276,0.000431,120]
[408741088,1774183863433,-500.0,0.00043123,120]
[408741089,1774183863447,-420.49,0.0004313,120]
[408741090,1774183863459,-150.0,0.00043144,2]
[408741091,1774183863471,-21041.2452988,0.00043144,2]
[408741092,1774183863483,-150.0,0.00043144,2]
[408741093,1774183863494,-6940.61553039,0.00043144,2]
[408741094,1774183863506,-150.0,0.00043144,2]
[408741095,1774183863519,-3283.0321845,0.00043144,2]
[408741096,1774183863530,-160.0,0.00043144,30]
[408741097,1774183863542,-155.0,0.000432,120]
[408741098,1774183863554,-1000.04826021,0.00043247,2]
[408741099,1774183863566,-831.51979763,0.00043247,2]
[408741100,1774183863578,-500.0,0.0004326,120]
[408741101,1774183863590,-150.0,0.00043274,14]
[408741102,1774183863603,-1990.0,0.00043287,120]
[408741103,1774183863614,-550.0,0.00043288,10]
[408741104,1774183863625,-151.5,0.00043288,2]
[408741105,1774183863639,-150.0,0.000433,71]
[408741106,1774183863651,-153.0,0.000433,120]
[408741107,1774183863664,-151.0,0.00043315,60]
[408741108,1774183863675,-151.5,0.00043317,2]
[408741109,1774183863688,-1093.0,0.0004336,30]
[408741110,1774183863699,-151.0,0.00043364,5]
[408741111,1774183863711,-150.0,0.00043383,14]
[408741112,1774183863723,-594.75146217,0.00043397,120]
[408741113,1774183863734,-412.51669,0.000434,120]
[408741114,1774183863746,-412.51669,0.000434,120]
[408741115,1774183863758,-412.51669,0.000434,120]
[408741116,1774183863770,-412.51669,0.000434,120]
[408741117,1774183863782,-412.5167,0.000434,120]
[408741118,1774183863794,-420.49,0.00043404,120]
[408741119,1774183863806,-150.0,0.0004344,14]
[408741120,1774183863819,-250.0,0.00043441,95]
[408741121,1774183863832,-150.0,0.00043479,14]
[408741122,1774183863843,-277.0,0.00043495,120]
[408741123,1774183863855,-500.0,0.000435,45]
[408741124,1774183863866,-500.0,0.000435,45]
[408741125,1774183863878,-500.0,0.000435,45]
[408741126,1774183863889,-500.0,0.000435,45]
[408741127,1774183863901,-500.0,0.000435,45]
[408741128,1774183863913,-500.0,0.000435,45]
[408741129,1774183863924,-500.0,0.000435,45]
[408741130,1774183863937,-500.0,0.000435,45]
[408741131,1774183863948,-500.0,0.000435,45]
[408741132,1774183863961,-312.13209438,0.000435,120]
[408741133,1774183863972,-61485.92855773,0.000435,30]
[408741134,1774183863984,-150.0,0.000435,120]
[408741135,1774183863996,-500.0,0.000435,45]
[408741136,1774183864008,-500.0,0.000435,45]
[408741137,1774183864020,-150.0,0.000435,120]
[408741138,1774183864035,-500.0,0.000435,45]
[408741139,1774183864049,-500.0,0.000435,45]
[408741140,1774183864063,-500.0,0.000435,45]
[408741141,1774183864076,-500.0,0.000435,120]
[408741142,1774183864090,-254.72603243,0.00043539,14]
[408741143,1774183864104,-150.0,0.0004356,14]
[408741144,1774183864117,-150.0,0.0004356,30]
[408741145,1774183864131,-193.13939547,0.0004356,30]
[408741146,1774183864145,-246.62813809,0.0004356,30]
[408741147,1774183864158,-153.93761613,0.0004356,30]
[408741148,1774183864171,-150.0,0.0004356,30]
[408741149,1774183864185,-150.0,0.0004356,30]
[408741150,1774183864198,-270.22810863,0.0004356,30]
[408741151,1774183864212,-150.0,0.0004356,30]
[408741152,1774183864225,-150.0,0.0004356,30]
[408741153,1774183864239,-524.1018904,0.0004356,30]
[408741154,1774183864252,-150.0,0.0004356,30]
[408741155,1774183864265,-150.0,0.0004356,30]
[408741156,1774183864279,-150.0,0.0004356,30]
[408741157,1774183864292,-150.0,0.0004356,30]
[408741158,1774183864305,-150.0,0.0004356,30]
[408741159,1774183864319,-202.50518274,0.0004356,30]
[408741160,1774183864333,-200.05121635,0.0004356,30]
[408741161,1774183864345,-111425.35574351,0.00043561,45]
[408741162,1774183864360,-1990.0,0.00043561,120]
[408741163,1774183864373,-1568.0,0.00043574,16]
[408741164,1774183864386,-150.0,0.00043585,14]
[408741165,1774183864401,-11973.30592714,0.00043598,120]
[408741166,1774183864414,-156.80204225,0.00043604,2]
[408741167,1774183864427,-193.13939547,0.00043609,30]
[408741168,1774183864439,-246.62813809,0.00043609,30]
[408741169,1774183864453,-153.93761613,0.00043609,30]
[408741170,1774183864466,-270.22810863,0.00043609,30]
[408741171,1774183864480,-524.1018904,0.00043609,30]
[408741172,1774183864493,-202.50518274,0.00043609,30]
[408741173,1774183864506,-150.0,0.00043638,30]
[408741174,1774183864519,-150.0,0.00043642,30]
[408741175,1774183864531,-150.0,0.00043643,30]
[408741176,1774183864544,-150.0,0.00043648,30]
[408741177,1774183864557,-16579.0,0.0004365,60]
[408741178,1774183864569,-150.0,0.00043652,14]
[408741179,1774183864582,-193.13939547,0.00043658,30]
[408741180,1774183864594,-246.62813809,0.00043658,30]
[408741181,1774183864607,-153.93761613,0.00043658,30]
[408741182,1774183864620,-270.22810863,0.00043658,30]
[408741183,1774183864632,-524.1018904,0.00043658,30]
[408741184,1774183864645,-202.50518274,0.00043658,30]
[408741185,1774183864657,-176.19260425,0.00043668,7]